Cogmind - Beta 13 @@@ ROGUE MODE // 2024.08.04 @ 21:35:47 Player: Wotf Result: Destroyed by SX-IDH(R) with Subdweller Laser Performance ------------- Evolutions (0) 0 Regions Visited (2) 400 Robots Destroyed (27) 135 Value Destroyed (548) 548 Prototype IDs (2) 40 Alien Tech Used (0) 0 Bonus (-37) -37 TOTAL SCORE: 1086 Bonus ------- Friendly Fire -37 Cogmind --------- Core Integrity 0/250 Matter 284/300 Energy 241/250 System Corruption 0% Temperature Cool (6) Movement Core (1500) Ox29 Location -10/Subcaves Parts ------- > --- POWER (1) -------- Ion Engine > --- PROPULSION (2) --- (None) > --- UTILITY (2) ------ Improved Heat Sink Huge Storage Unit > --- WEAPON (2) ------- Small Laser Light Assault Rifle > --- INVENTORY (25) --- Ion Engine Ion Engine Light Ion Engine Light Treads Light Treads Light Treads Aluminum Leg Aluminum Leg Aluminum Leg Aluminum Leg Aluminum Leg Aluminum Leg Compact Wheel Compact Wheel Hover Unit Small Storage Unit High-capacity Matter Pod (200) Seismic Detector Targeting Computer Power Shielding Light Armor Plating Light Armor Plating Tractor Beam Peak State ------------ > --- POWER ------------ Light Ion Engine > --- PROPULSION ------- Wheel Compact Wheel > --- UTILITY ---------- Improved Heat Sink Huge Storage Unit > --- WEAPON ----------- Beam Cannon Assault Rifle > --- INVENTORY -------- Ion Engine Ion Engine Light Ion Engine Light Ion Engine Light Treads Light Treads Light Treads Light Treads Aluminum Leg Aluminum Leg Aluminum Leg Aluminum Leg Compact Wheel Compact Wheel Compact Wheel Hover Unit Hover Unit Small Storage Unit High-capacity Matter Pod Transport Network Coupler Power Shielding Tractor Beam Small Laser Small Laser Light Assault Rifle [Rating: 11] Favorites ----------- Power Light Ion Engine Engine Light Ion Engine Propulsion Compact Wheel Treads Light Treads Wheel Compact Wheel Utility Huge Storage Unit Device Improved Heat Sink Storage Huge Storage Unit Weapon Light Assault Rifle Energy Gun Small Laser Energy Cannon Beam Cannon Ballistic Gun Light Assault Rifle Build | -11 -10 -10 ------- Run | Yrd Mat Sub Slots Evolved . | . . . Power . | . . . Propulsion . | . . . Utility . | . . . Weapon . | . . . Parts Attached 23 | 6 15 2 Power 3 | 1 2 . Engine 3 | 1 2 . Core . | . . . Reactor . | . . . Propulsion 8 | 2 6 . Treads 2 | . 2 . Leg . | . . . Wheel 6 | 2 4 . Hover . | . . . Flight . | . . . Utility 5 | 1 3 1 Device 3 | . 2 1 Storage 2 | 1 1 . Processor . | . . . Hackware . | . . . Protection . | . . . Artifact . | . . . Weapon 7 | 2 4 1 Energy Gun 2 | 1 . 1 Energy Cannon 1 | . 1 . Ballistic Gun 4 | 1 3 . Ballistic Cannon . | . . . Launcher . | . . . Special Weapon . | . . . Impact Weapon . | . . . Slashing Weapon . | . . . Piercing Weapon . | . . . Special Melee Weapon . | . . . Unidentified Prototypes . | . . . Parts Lost 10 | . 6 4 Power 1 | . 1 . Propulsion 5 | . 3 2 Utility 1 | . . 1 Weapon 3 | . 2 1 Highest Loss Streak 5 | . 5 2 To Critical Strikes . | . . . Average Slot Usage (%) 97 | . 96 97 Engine 14 | . 14 14 Treads 9 | . 4 27 Wheel 16 | . 20 . Device 10 | . 9 12 Storage 17 | . 18 14 Energy Gun 4 | . 4 7 Energy Cannon 5 | . 7 . Ballistic Gun 17 | . 16 20 Naked Turns . | . . . Heaviest Build 91 | 10 91 88 Greatest Support 40 | 26 40 40 Greatest Overweight (x) 5 | . 5 2 Average Overweight (x) 2 | . 2 2 Largest Inventory Capacity 25 | 8 25 25 Average Capacity 24 | 7 24 25 Most Carried 25 | 8 25 25 Average Carried 22 | 3 23 23 Final Capacity 25 | 8 25 25 Final Carried 25 | 8 25 23 Class Distribution -------------------- 100% | Mutant Dominant Class ---------------- Mutant | -10/Materials Mutant | -10/Subcaves Resources | -11 -10 -10 ----------- Run | Yrd Mat Sub Matter Collected 799 | 260 529 10 Remotely . | . . . Salvage Created 1077 | 56 980 41 Parts 60 | 2 50 8 Haulers Intercepted 2 | . 2 . Recyclers Shooed 1 | . 1 . Parts Field Recycled . | . . . Retrieved Matter . | . . . Parts Self-Destructed 12 | . . 12 Prevented . | . . . Kills | -11 -10 -10 ------- Run | Yrd Mat Sub Combat Hostiles Destroyed 13 | . 10 3 Guns 12 | . 9 3 Cannons 1 | . 1 . Classes Destroyed 7 | 1 5 1 Builder 1 | . 1 . Hauler 2 | . 2 . Recycler 5 | 1 4 . Operator 3 | . 3 . Watcher 3 | . 3 . Swarmer 3 | . . 3 Grunt 10 | . 10 . Best Kill Streak 4 | 1 4 3 Combat Bots Only 3 | . 3 3 Max Kills in Single Turn 2 | 1 1 2 Gunslinging . | . . . Exploded . | . . . Melee . | . . . Uniques/NPCs Destroyed . | . . . Combat | -11 -10 -10 -------- Run | Yrd Mat Sub Hostile Shots Fired 155 | . 94 61 Missed 37 | . 22 15 Damage Taken 1345 | . 897 448 Core 259 | . 174 85 Absorbed by Shields . | . . . Core Remaining (%) 100 | 100 . . Volleys Fired 109 | 2 96 11 Largest 2 | 2 2 2 Hottest 80 | 60 80 60 Shots Fired 215 | 4 189 22 Gun 173 | 4 147 22 Cannon 42 | . 42 . Launcher . | . . . Special . | . . . Kinetic 129 | 2 111 16 Thermal 86 | 2 78 6 Explosive . | . . . Electromagnetic . | . . . Robot Hit Streak 10 | 4 7 10 Robot Miss Streak 6 | . 6 3 Penetration Max . | . . . Secondary Targets . | . . . Shots Hit Robots 130 | 4 112 14 Core Hits 54 | 2 46 6 Critical Kills 1 | . 1 . Critical Parts Destroyed . | . . . Critical Strikes 1 | . 1 . Destroy 1 | . 1 . Melee Attacks . | . . . Impact . | . . . Slashing . | . . . Piercing . | . . . Sneak Attacks . | . . . Combat Hostiles . | . . . Follow-up Attacks . | . . . Damage Inflicted 1567 | 38 1391 138 Guns 1199 | 38 1023 138 Cannons 347 | . 347 . Explosions . | . . . Melee . | . . . Ramming 21 | . 21 . Kinetic 867 | 16 777 74 Thermal 679 | 22 593 64 Explosive . | . . . Electromagnetic . | . . . Impact . | . . . Slashing . | . . . Piercing . | . . . Highest Corruption . | . . . Average Corruption . | . . . Corruption Purged . | . . . Corruption Blocked . | . . . Overload Shots . | . . . Overflow Damage 5 | . 5 . Projectiles 5 | . 5 . Explosions . | . . . Melee . | . . . Knockbacks . | . . . Impact . | . . . Kinetic . | . . . Secondary . | . . . Self-Inflicted Damage 10 | . 10 . Shots . | . . . Rammed 1 | . 1 . Targets Rammed 1 | . 1 . Kicked . | . . . Crushed . | . . . Highest Temperature 209 | 20 209 . Average Temperature 68 | 15 70 . Received Heat Transfer 720 | . 492 228 Siege Activations . | . . . Robots Corrupted . | . . . Combat Hostiles . | . . . Parts Fried . | . . . Impact Corruptions . | . . . Robots Melted . | . . . Combat Hostiles . | . . . Parts Melted . | . . . Heat Transferred 1490 | 50 1290 150 Parts Sabotaged . | . . . Parts Stolen . | . . . Parts Stripped . | . . . Power Chain Reactions . | . . . Alert | -11 -10 -10 ------- Run | Yrd Mat Sub Peak Influence 170 | 5 170 . Initial 3 | . 3 . Average 59 | . 61 . Maximum Alert Level . | . . . Low Security (%) 100 | 100 100 . Level 1 . | . . . Level 2 . | . . . Level 3 . | . . . Level 4 . | . . . Level 5 . | . . . High Security . | . . . Max Security . | . . . Squads Dispatched 4 | . 4 . Investigation 2 | . 2 . Extermination . | . . . Reinforcement 2 | . 2 . Assault . | . . . Garrison . | . . . Intercept . | . . . Searches Triggered . | . . . Construction Impeded . | . . . Haulers Reinforced . | . . . Active Scanning Responses . | . . . Cargo Convoy Interrupts . | . . . Stealth | -11 -10 -10 --------- Run | Yrd Mat Sub Distress Signals 2 | . 2 . Communications Jammed . | . . . Distress Signals . | . . . Times Spotted 51 | . 29 22 Peak Tracking Total 6 | . 4 6 Tactical Retreats 4 | . 1 3 Traps | -11 -10 -10 ------- Run | Yrd Mat Sub Traps Triggered . | . . . Indirectly . | . . . Trap Hack Attempts . | . . . Triggered . | . . . Disarmed . | . . . Reprogrammed . | . . . Reused . | . . . Traps Extracted . | . . . Installed . | . . . Triggered . | . . . Machines | -11 -10 -10 ---------- Run | Yrd Mat Sub Machines Disabled 2 | . 2 . Max in Single Turn 1 | . 1 . Machines Repaired . | . . . Machines Dismantled . | . . . Machines Sabotaged . | . . . Overloaded Fab Kills . | . . . Hacking | -11 -10 -10 --------- Run | Yrd Mat Sub Machines Accessed 5 | . 5 . Terminals 4 | . 4 . Fabricators . | . . . Repair Stations . | . . . Recycling Units 1 | . 1 . Scanalyzers . | . . . Garrison Access . | . . . Total Hacks 12 | . 12 . Successful 6 | . 6 . Failed 6 | . 6 . Catastrophic 1 | . 1 . Database Lockouts . | . . . Manual 6 | . 6 . Terminals 8 | . 8 . Fabricators . | . . . Repair Stations . | . . . Recycling Units 4 | . 4 . Scanalyzers . | . . . Garrison Access . | . . . Terminal Hacks 2 | . 2 . Robot Analysis 1 | . 1 . Prototype ID Bank 1 | . 1 . Fabricator Hacks . | . . . Repair Station Hacks . | . . . Recycling Unit Hacks 3 | . 3 . Report Inventory 2 | . 2 . Retrieve Components 1 | . 1 . Scanalyzer . | . . . Garrison Access Hacks . | . . . Unauthorized Hacks 1 | . 1 . Terminals 1 | . 1 . Assimilate 1 | . 1 . Fabricators . | . . . Repair Stations . | . . . Recycling Units . | . . . Scanalyzers . | . . . Garrison Access . | . . . Data Cores Recovered . | . . . Used . | . . . Hacking Detections 4 | . 4 . Full Trace Events 2 | . 2 . Feedback Events . | . . . Feedback Blocked . | . . . Robot Schematics Acquired . | . . . Robots Built . | . . . Authchips . | . . . Time . | . . . Total Robot Build Rating . | . . . Part Schematics Acquired . | . . . Parts Built . | . . . Authchips . | . . . Time . | . . . Total Part Build Rating . | . . . Parts Repaired . | . . . Time . | . . . Parts Recycled . | . . . Recycled Matter . | . . . Retrieved Matter . | . . . Retrieved Components 7 | . 7 . Parts Scanalyzed . | . . . Part Schematics Acquired . | . . . Parts Damaged . | . . . Bothacking | -11 -10 -10 ------------ Run | Yrd Mat Sub Used RIF Installer . | . . . Robots Hacked . | . . . Non-combat . | . . . Combat . | . . . Robot Hacks Applied . | . . . Relay Couplers Released . | . . . Fabnet Peak Effective % . | . . . Robots Rewired . | . . . Allies Hacked . | . . . Hacks Repelled . | . . . Allies | -11 -10 -10 -------- Run | Yrd Mat Sub Total Allies 1 | . 1 . Largest Group 1 | . 1 . Highest-Rated Group 10 | . 10 . Highest-Rated Ally 10 | . 10 . Total Orders . | . . . Ally Attacks . | . . . Total Damage . | . . . Kills . | . . . Allies Corrupted . | . . . Allies Melted . | . . . Intel | -11 -10 -10 ------- Run | Yrd Mat Sub Robot Analysis Total 1 | . 1 . Derelict Logs Recovered . | . . . Drone Launches . | . . . Drone Recoveries . | . . . Exploration | -11 -10 -10 ------------- Run | Yrd Mat Sub Turns Passed 2261 | 61 1752 448 Spaces Moved 968 | 42 799 127 Core 3 | 3 . . Treads 212 | . 85 127 Legs . | . . . Wheels 753 | 39 714 . Hover . | . . . Flight . | . . . Fastest Speed 50 | 50 90 320 Average Speed 174 | 86 155 320 Slowest Speed 320 | 90 320 320 Overloaded Moves . | . . . Propulsion Burnouts . | . . . Robots Hopped . | . . . Cave-ins Triggered . | . . . Exploration Rate (%) 32 | 3 79 16 Regions Visited 2 Branch Regions 1 Pre-discovered Areas 1 | . . 1 Known Exits Taken . | . . . Unknown Exits Taken 2 | 1 1 . Scrap Searched . | . . . Spaces Dug . | . . . Terrain Destroyed . | . . . Melee . | . . . Projectile . | . . . AOE . | . . . Terrain Rammed . | . . . Walls Destroyed . | . . . Machines Disabled . | . . . Actions | -11 -10 -10 --------- Run | Yrd Mat Sub Total 1361 | 59 1150 152 Wait 193 | 2 179 12 Move 966 | 41 798 127 Hop . | . . . Pick Up 48 | 8 40 . Fast Attach 8 | 6 2 . Attach 8 | . 6 2 Detach . | . . . Swap 7 | . 7 . Drop 21 | . 21 . Fire 109 | 2 96 11 Melee . | . . . Ram 1 | . 1 . Kick . | . . . Crush . | . . . Escape Stasis . | . . . Rewire . | . . . Trap . | . . . Miscellaneous . | . . . Route ------- -11/Scrapyard -10/Materials (discovered 4 exits: [*Mat x3] / [*Sub]) -10/Subcaves History --------- Turn | Location | Event 9 | -11/Scrapyard | Discovered new exit (range 16) 62 | -11/Scrapyard | Entered Materials 302 | -10/Materials | Build established: Mutant 752 | -10/Materials | Discovered new exit (range 4) 974 | -10/Materials | Discovered new exit (range 4) 1387 | -10/Materials | Discovered new exit (range 12) 1502 | -10/Materials | Core integrity fell below 50% 1541 | -10/Materials | Lost 5 parts (1p2n2w) 1784 | -10/Materials | Discovered new exit (range 9) 1814 | -10/Materials | Entered Subcaves 2006 | -10/Subcaves | Core integrity fell below 20% 2180 | -10/Subcaves | Learned location of Zion (-7) 2180 | -10/Subcaves | Met a Zionite searching for "candidates" 2262 | -10/Subcaves | Destroyed by SX-IDH(R) with Subdweller Laser Last Messages --------------- Flight Unit fries itself beyond repair. Subatomizers dissect the Lgt. Ion Engine. Acquired 10 matter. Lgt. Ion Engine fries itself beyond repair. Imp. Heat Sink destroyed. Lgt. Assault Rifle fries itself beyond repair. Flight Unit fries itself beyond repair. Lgt. Ion Engine fries itself beyond repair. Lgt. Assault Rifle fries itself beyond repair. Flight Unit fries itself beyond repair. Lgt. Ion Engine fries itself beyond repair. Lgt. Assault Rifle destroyed. 9K-38X(z): "She is not going to be happy we haven't found any suitable candidates yet." 9K-38X(z): "Hey you! It's really dangerous down here, I feel that you could die at any moment. For your health and safety might I suggest a trip to Zion?" World map updated: -7/Zion. Lgt. Treads destroyed. Map ----- +----------------------------------------------------+ | ?????????????????????????????????????????????# #? | | ?????????????????????????????????????????????# # | | ?????????????????????????????????????????????# | | ?????????????????????????????????????????????# | | ?????????????????????????????????????????????# | | ?????????????????????????????????????????????? | | ???????????????????????????????????????????????# | | ????????????????????????????????????????????????# | | ????????????????????????????????????????????????# | | ????????????????????????????????????????????##### | | ????????????????????????????????????????????# | | ????????????????????????????????????????????# | | ??????????????????????????????????? ???????## | | ?????????????????????????????????? ????## | | ?????????????????????????????????? #????# | | ????????????????????????????????? #???## | | ?????????????????????????????##? #??## | | ??????????????????????#""##?# ## #???# | | ?????????????????????#""""## #??## ## | | ????????????????????##"""""" #?### ### | | ???????????????????##""""""" #?## #### | | ??????????????? ###" """"" ??# ### | | ?????????????? " " #?????# ###?## | | ?????????????????"""" #????#### ##????## | | ???????????????"" ######R #????# ###??????## | | ?????????????????????####@ ##???# #?????????? | | ?????????????????????#""" #???# ##????????? | | ?????????????????????## " #???### #????????? | | ??????????????????????##" ###??## #????????? | | ???????????????????????## ##?# ##????????? | | ????????????????????????## ### ###?????????? | | ?????????????????????????### # ###??????????? | | ???????????????????????????####z ##??????????? | | ?????????????????????????????# #??????????? | | ????????????????????????????# #???????????? | | ??????????????????????????# #????????????? | | ?????????????????????????# #????????????? | | ???????????????????????? ###????????????? | | ???????????????????????# ## #??????????????? | | ???????????????????????# #?# #??????????????? | | ???????????????????????# ??# ####??????????????? | | ???????????????????????## ???##??????????????????? | | ???????????????????????? ???????????????????????? | | ??????????????????????? ????????????????????????? | | ?????????????????????? ?????????????????????????? | | ?????????????????????????????????????????????????? | | ?????????????????????????????????????????????????? | | ?????????????????????????????????????????????????? | | ?????????????????????????????????????????????????? | | ?????????????????????????????????????????????????? | +----------------------------------------------------+ Best States ------------- Heat Dissipation 39 Energy Generation 10 Energy Capacity 250 Matter Stores 300 Matter Capacity 300 Sight Range 16 Terrain Scan Density 10 Evasion (%) 42 Recoil Reduction 2 Item Schematics ----------------- None Robot Schematics ------------------ None Fabricated ------------ Nothing Alien Tech Used ----------------- None Achievements -------------- Backstab Challenges ------------ None Game ------ Seed StorageCompositeAutohacker Manual? 0 Play Time 00:20:23 Cumulative 32.0 hours Start 2024.08.03 @ 12:57:46 End 2024.08.04 @ 21:35:47 Sessions 5 Manual Loads 0 Difficulty Rogue Special Mode None Game No. 22 Rogue 10 Adventurer 12 Explorer 0 Win Type - Total 0 Types 0/0/0/0/0/0/0/0/0 Lore% 15 Gallery% 22 Achievement% 21 Wizard Run 0 Options --------- Layout 1 ASCII 0 Keyboard 0 Movement Numpad Keybinds 0 Fullscreen 1 Font 24/Smallcaps Map View 50x35 Zoom Use 0% Tactical HUD 0 Map Filters NONE Filters NONE Steam 1 RUN: 8e30afb7-15ef-4eca-8e67-0b8da6062388